bitfinex/quotes_SOLUSD_20250821
["timestamp","ask_amount","ask_price","bid_price","bid_amount"]
[1755760081585,0.06,187.39,187.38,41.1608057]
[1755760081788,0.06,187.39,187.38,41.8808057]
[1755760082395,0.06,187.39,187.38,41.1608057]
[1755760082570,0.73,187.39,187.38,37.4]
[1755760082767,0.06,187.39,187.38,37.4]
[1755760083176,0.06,187.39,187.38,41.8808057]
[1755760083494,0.06,187.39,187.38,41.1608057]
[1755760083866,0.06,187.39,187.38,41.8808057]
[1755760084072,0.06,187.39,187.38,41.1608057]
[1755760084268,0.06,187.39,187.38,30.4808057]
[1755760084566,0.06,187.39,187.38,67.1608057]
[1755760084988,0.06,187.39,187.38,29.7608057]
[1755760085178,0.06,187.39,187.38,67.1608057]
[1755760086794,0.06,187.39,187.38,64.12]
[1755760087097,0.06,187.39,187.38,67.8808057]
[1755760088573,0.06,187.39,187.38,147.6808057]
[1755760088776,0.06,187.39,187.38,161.56072285]
[1755760088986,0.06,187.39,187.38,172.7970284]
[1755760091580,0.06,187.41,187.39,0.28432314]
[1755760091792,0.06,187.41,187.4,54.75639971]
[1755760091979,0.06,187.41,187.4,55.47639971]
[1755760092163,0.67,187.5,187.44,13.87991715]
[1755760092368,0.67,187.5,187.48,3.7608057]
[1755760092595,0.67,187.52,187.51,26.0]
[1755760092796,0.67,187.52,187.51,63.4]
[1755760092971,0.67,187.54,187.51,67.1608057]
[1755760093291,0.67,187.53,187.51,67.1608057]
[1755760093484,0.67,187.52,187.51,67.1608057]
[1755760093995,0.67,187.52,187.51,37.4]
[1755760095967,0.73,187.54,187.53,26.0]
[1755760096189,0.73,187.54,187.53,63.4]
[1755760096806,4.4908057,187.54,187.53,63.4]
[1755760097209,4.4908057,187.54,187.48,9.0306318]
[1755760097210,4.4908057,187.54,187.52,37.38]
[1755760097404,4.4308057,187.53,187.52,37.38]
[1755760097723,0.67,187.53,187.52,37.38]
[1755760097928,4.4308057,187.53,187.51,37.38]
[1755760098223,3.7608057,187.52,187.49,37.38]
[1755760098423,0.67,187.51,187.49,37.38]
[1755760098592,0.67,187.53,187.49,41.8608057]
[1755760098796,0.67,187.52,187.49,41.1408057]
[1755760098995,0.67,187.51,187.49,41.1408057]
[1755760099709,0.67,187.53,187.49,41.1408057]
[1755760099894,3.8208057,187.54,187.49,41.1408057]
[1755760100099,0.67,187.52,187.49,41.1408057]
[1755760100300,0.67,187.51,187.49,37.38]
[1755760100516,0.06,187.54,187.49,37.38]
[1755760100700,0.67,187.51,187.5,63.4]
[1755760100920,0.06,187.54,187.5,63.4]
[1755760101095,0.73,187.54,187.5,67.8808057]
[1755760102228,0.73,187.54,187.5,64.12]
[1755760102521,0.73,187.54,187.5,67.8808057]
[1755760102830,0.06,187.54,187.51,0.72]
[1755760103125,0.06,187.54,187.52,37.4]
[1755760103490,0.69,187.53,187.52,37.4]
[1755760104028,0.75,187.54,187.52,37.4]
[1755760104421,0.69,187.53,187.52,37.4]
[1755760104619,4.4508057,187.53,187.52,37.4]
[1755760104830,4.4508057,187.53,187.51,37.4]
[1755760105003,4.4508057,187.52,187.47,26.0]
[1755760105204,4.4508057,187.51,187.5,26.0]
[1755760105404,4.4508057,187.51,187.5,37.4]
[1755760105631,4.4508057,187.51,187.49,26.0]
[1755760105927,4.4508057,187.51,187.45,4.4308057]
[1755760105928,4.4508057,187.5,187.48,37.42]
[1755760106128,3.7608057,187.49,187.48,37.42]
[1755760106443,4.4508057,187.5,187.48,37.42]
[1755760106742,0.69,187.52,187.48,37.42]
[1755760106910,3.7608057,187.51,187.48,37.42]
[1755760107109,4.4508057,187.51,187.48,37.42]
[1755760107516,0.69,187.51,187.48,37.42]
[1755760107727,3.7608057,187.52,187.48,38.09]
[1755760107916,4.4508057,187.52,187.48,38.09]
[1755760108215,3.7608057,187.53,187.48,41.1808057]
[1755760108416,0.69,187.52,187.48,41.8508057]
[1755760108831,0.69,187.51,187.48,37.42]
[1755760109325,3.7608057,187.52,187.48,37.42]
[1755760109520,3.7608057,187.53,187.49,0.67]
[1755760109720,3.7608057,187.53,187.5,37.42]
[1755760109917,4.4508057,187.53,187.5,37.42]
[1755760110132,4.4508057,187.52,187.5,37.42]
[1755760110323,0.69,187.51,187.5,37.42]
[1755760110640,3.7608057,187.52,187.5,37.42]
[1755760110847,0.69,187.52,187.5,37.42]
[1755760111014,3.7608057,187.53,187.5,37.42]
[1755760111219,4.4508057,187.53,187.5,37.42]
[1755760112046,3.7608057,187.53,187.5,37.42]
[1755760112227,3.7608057,187.53,187.5,38.09]
[1755760112947,4.4508057,187.53,187.5,37.42]
[1755760113526,0.69,187.53,187.5,37.42]
[1755760113929,4.4508057,187.53,187.5,37.42]
[1755760114327,3.7608057,187.52,187.5,37.42]
[1755760114562,4.4508057,187.51,187.47,26.0]
[1755760114881,4.4508057,187.51,187.45,6.05014137]
[1755760114882,3.7608057,187.52,187.5,26.0]
[1755760115022,4.4508057,187.51,187.5,26.0]
[1755760115631,0.75,187.54,187.5,26.0]
[1755760115958,4.5108057,187.54,187.5,38.07]
[1755760116353,0.75,187.54,187.5,38.07]
[1755760116569,3.8208057,187.54,187.5,37.4]
[1755760116768,3.8208057,187.54,187.51,0.67]
[1755760117333,0.06,187.54,187.51,0.67]
[1755760117664,3.8208057,187.54,187.51,0.67]
[1755760118369,4.5108057,187.54,187.5,37.4]
[1755760118543,0.75,187.54,187.5,37.4]
[1755760118751,0.69,187.53,187.52,26.0]
[1755760118948,4.5108057,187.54,187.52,26.0]
[1755760120748,0.69,187.53,187.52,26.0]
[1755760120972,3.8208057,187.54,187.52,26.0]
[1755760121269,0.69,187.53,187.52,26.0]
[1755760121777,4.4508057,187.53,187.52,26.0]
[1755760122952,4.4508057,187.53,187.49,37.4]
[1755760123274,0.06,187.54,187.49,37.4]
[1755760123275,3.7608057,187.51,187.49,37.4]
[1755760124174,3.7608057,187.52,187.5,0.67]
[1755760124470,3.7608057,187.52,187.49,37.4]
[1755760124677,4.4508057,187.51,187.49,37.4]
[1755760125178,3.7608057,187.52,187.5,0.67]
[1755760125366,3.7608057,187.52,187.51,26.0]
[1755760127083,4.4508057,187.52,187.51,26.0]
[1755760127603,4.4508057,187.52,187.45,5.32457033]
[1755760127781,3.7608057,187.49,187.48,26.0]
[1755760127984,3.7608057,187.49,187.41,4.450806]
[1755760128188,3.7608057,187.48,187.45,26.0]
[1755760128389,3.7608057,187.49,187.47,26.0]
[1755760128589,3.7608057,187.49,187.48,26.0]
[1755760128997,3.7608057,187.49,187.46,0.67]
[1755760129195,3.7608057,187.49,187.48,26.0]
[1755760130305,3.7608057,187.49,187.46,0.67]
[1755760130478,3.7608057,187.49,187.48,26.0]
[1755760132003,3.7608057,187.49,187.46,38.07]
[1755760132790,0.06,187.54,187.46,37.4]
[1755760133109,3.7608057,187.49,187.47,0.67]
[1755760133884,0.06,187.54,187.49,26.0]
[1755760134192,0.06,187.54,187.5,0.66]
[1755760134193,3.7608057,187.53,187.5,0.66]
[1755760134985,3.7608057,187.51,187.49,37.4]
[1755760135504,3.7608057,187.51,187.49,38.06]
[1755760135710,3.7608057,187.52,187.49,38.06]
[1755760136692,3.7608057,187.51,187.49,38.06]
[1755760136892,3.7608057,187.51,187.49,37.4]
[1755760138825,3.7608057,187.5,187.46,0.66]
[1755760138987,3.7608057,187.48,187.47,37.38]
[1755760139404,4.4308057,187.48,187.47,63.38]
[1755760139609,0.67,187.53,187.47,64.04]
[1755760139917,0.67,187.53,187.49,26.0]
[1755760140217,3.7608057,187.5,187.49,26.0]
[1755760140419,4.4308057,187.5,187.47,37.38]
[1755760140612,3.7608057,187.48,187.47,37.38]
[1755760141122,4.4308057,187.48,187.41,3.760806]
[1755760141344,3.7608057,187.43,187.39,0.69]
[1755760141546,3.7608057,187.42,187.4,37.46]
[1755760141849,13.87991715,187.52,187.4,37.46]
[1755760141850,3.7608057,187.46,187.43,26.0]
[1755760142016,3.7608057,187.48,187.44,0.66]
[1755760142214,3.7608057,187.47,187.44,0.66]
[1755760142522,3.7608057,187.47,187.43,63.46]
[1755760142728,0.67,187.46,187.45,26.0]
[1755760142928,4.4308057,187.46,187.45,26.0]
[1755760143131,3.7608057,187.46,187.43,37.48]
[1755760143337,3.7608057,187.48,187.44,0.66]
[1755760143533,3.7608057,187.5,187.45,3.7608057]
[1755760143710,0.67,187.51,187.46,41.9208057]
[1755760143917,0.06,187.52,187.49,29.7608057]
[1755760144212,0.06,187.52,187.49,37.5]
[1755760144419,3.7608057,187.5,187.47,26.0]
[1755760144635,3.7608057,187.51,187.49,37.5]
[1755760145152,0.06,187.52,187.5,0.66]
[1755760145329,3.8208057,187.52,187.49,37.5]
[1755760145528,4.4308057,187.51,187.49,37.5]
[1755760146520,0.67,187.5,187.49,37.5]
[1755760147047,0.67,187.5,187.47,26.0]
[1755760147048,4.4308057,187.5,187.47,37.52]
[1755760147351,0.06,187.52,187.47,37.52]
[1755760147524,3.7608057,187.49,187.47,37.52]
[1755760148118,4.4308057,187.49,187.47,37.52]
[1755760148344,3.7608057,187.49,187.47,37.52]
[1755760148539,3.7608057,187.5,187.47,37.52]
[1755760148718,3.7608057,187.51,187.48,0.66]
[1755760149949,3.7608057,187.51,187.47,37.52]
[1755760150249,3.7608057,187.5,187.48,0.66]
[1755760150430,0.06,187.52,187.47,37.52]
[1755760150626,3.7608057,187.48,187.45,37.52]
[1755760151332,3.7608057,187.48,187.45,38.18]
[1755760152664,0.06,187.52,187.44,37.52]
[1755760152665,3.7608057,187.46,187.44,37.52]
[1755760154449,0.67,187.47,187.44,37.52]
[1755760154648,3.7608057,187.46,187.44,37.52]
[1755760155353,2.78355182,187.51,187.42,0.66]
[1755760155354,3.7608057,187.45,187.42,0.66]
[1755760155574,3.7608057,187.45,187.41,0.03]
[1755760155575,3.7608057,187.43,187.41,0.03]
[1755760155730,0.67,187.44,187.41,0.03]
[1755760155927,3.7608057,187.42,187.41,0.03]
[1755760157252,0.67,187.42,187.41,0.03]
[1755760157563,4.4308057,187.42,187.41,0.03]
[1755760161853,0.67,187.45,187.41,0.03]
[1755760162164,3.7608057,187.42,187.41,0.03]
[1755760162371,4.4308057,187.42,187.41,0.03]
[1755760162870,18.02639971,187.42,187.41,0.03]
[1755760166651,4.4308057,187.42,187.41,0.03]
[1755760167159,3.7608057,187.42,187.41,0.03]
[1755760167364,4.4808057,187.42,187.41,0.03]
[1755760168272,3.7608057,187.42,187.41,0.03]
[1755760169670,3.7608057,187.43,187.41,0.03]
[1755760170772,3.7608057,187.44,187.41,0.72]
[1755760170975,3.7608057,187.43,187.41,0.72]
[1755760171276,3.7608057,187.43,187.41,0.03]
[1755760171695,37.54,187.45,187.41,0.03]
[1755760171995,3.7608057,187.44,187.42,0.69]
[1755760172296,3.7608057,187.44,187.41,0.03]
[1755760172466,4.4808057,187.44,187.41,0.03]
[1755760173484,41.3008057,187.45,187.42,0.69]
[1755760173860,37.54,187.45,187.43,0.69]
[1755760174273,0.06,187.46,187.43,0.69]
[1755760174669,0.06,187.46,187.44,0.69]
[1755760175190,0.06,187.46,187.42,3.7608057]
[1755760175191,3.8208057,187.46,187.42,4.4508057]
[1755760175360,3.8208057,187.46,187.42,0.69]
[1755760175680,4.5408057,187.46,187.42,0.69]
[1755760176065,3.8208057,187.46,187.41,0.03]
[1755760176277,3.7608057,187.42,187.41,0.03]
[1755760177291,4.4808057,187.42,187.41,0.03]
[1755760177690,3.7608057,187.42,187.41,0.03]
[1755760178614,4.4808057,187.42,187.41,0.03]
[1755760181803,18.07639971,187.42,187.41,0.03]
[1755760182098,18.36072285,187.42,187.41,0.03]
[1755760189627,14.59991715,187.42,187.41,0.03]
[1755760189925,18.36072285,187.42,187.41,0.03]
[1755760193330,18.42072285,187.42,187.41,0.03]
[1755760194899,55.96072285,187.42,187.41,0.03]
[1755760195106,55.94072285,187.42,187.41,0.03]
[1755760195532,59.53128172,187.42,187.41,0.03]
[1755760195703,62.31679563,187.42,187.41,0.03]
[1755760196397,61.61679563,187.42,187.41,0.03]
[1755760196695,62.27679563,187.42,187.41,0.03]
[1755760200403,23.87991715,187.38,187.37,0.03]
[1755760200617,23.87991715,187.38,187.26,2.830125]
[1755760200618,13.59559401,187.32,187.26,2.830125]
[1755760200813,3.7608057,187.27,187.26,2.140125]
[1755760201124,4.70512884,187.27,187.2,0.72]
[1755760201334,3.7608057,187.23,187.2,0.72]
[1755760202021,3.7608057,187.23,187.22,0.72]
[1755760202226,3.7608057,187.23,187.22,0.03]
[1755760202402,4.4208057,187.23,187.22,0.03]
[1755760202601,3.7608057,187.23,187.22,0.03]
[1755760202912,18.30072285,187.23,187.22,0.03]
[1755760204533,0.66,187.26,187.22,0.72]
[1755760204727,3.7608057,187.23,187.22,0.72]
[1755760204922,41.3808057,187.23,187.22,0.03]
[1755760205228,41.3808057,187.23,187.22,0.72]
[1755760206126,37.62,187.23,187.22,0.03]
[1755760206635,13.59559401,187.28,187.22,0.72]
[1755760206849,3.7608057,187.25,187.22,0.72]
[1755760207058,41.3608057,187.24,187.22,0.72]
[1755760207232,37.6,187.24,187.22,0.72]
[1755760207613,3.7608057,187.26,187.22,0.72]
[1755760207841,41.3808057,187.26,187.22,0.72]
[1755760208149,37.62,187.26,187.22,0.72]
[1755760208455,37.62,187.26,187.24,3.7608057]
[1755760208614,37.62,187.26,187.25,0.69]
[1755760208946,3.7608057,187.28,187.25,0.69]
[1755760209142,41.3808057,187.29,187.24,3.7608057]
[1755760209347,41.3808057,187.29,187.26,0.69]
[1755760210146,41.3808057,187.29,187.24,3.7608057]
[1755760210323,3.7608057,187.29,187.27,0.69]
[1755760210513,41.3808057,187.29,187.25,0.69]
[1755760210712,41.3808057,187.29,187.26,0.69]
[1755760211421,41.3808057,187.29,187.24,3.7608057]
[1755760211626,37.62,187.29,187.27,0.69]
[1755760211823,41.3808057,187.29,187.27,0.69]
[1755760212246,37.62,187.29,187.27,0.69]
[1755760214143,37.62,187.29,187.25,4.4508057]
[1755760214441,37.62,187.29,187.26,0.69]
[1755760214843,37.62,187.29,187.27,0.69]
[1755760215220,37.58,187.31,187.28,0.69]
[1755760215422,37.58,187.31,187.29,0.69]
[1755760215624,41.3408057,187.31,187.27,0.69]
[1755760215944,42.0008057,187.31,187.27,0.69]
[1755760217034,4.4208057,187.3,187.25,4.4508057]
[1755760217232,3.7608057,187.3,187.25,4.4508057]
[1755760217448,0.66,187.29,187.25,4.4508057]
[1755760217637,4.4208057,187.3,187.26,0.69]
[1755760218737,41.3408057,187.31,187.27,0.69]
[1755760218945,41.3408057,187.31,187.26,3.7608057]
[1755760219147,42.0008057,187.31,187.27,0.69]
[1755760219345,4.4208057,187.3,187.25,4.4508057]
[1755760219541,4.4208057,187.3,187.26,0.69]
[1755760221861,0.66,187.29,187.25,3.7608057]
[1755760222156,4.4208057,187.29,187.25,0.69]
[1755760222959,3.7608057,187.29,187.24,3.7608057]
[1755760223158,0.68,187.28,187.24,4.4308057]
[1755760223464,0.68,187.28,187.25,0.67]
[1755760223625,3.7608057,187.29,187.24,3.7608057]
[1755760223826,3.7608057,187.29,187.25,0.67]
[1755760224036,0.68,187.3,187.25,0.67]
[1755760224248,3.7608057,187.29,187.25,0.67]
[1755760224445,0.68,187.29,187.25,4.4308057]
[1755760225444,3.7608057,187.26,187.22,0.03]
[1755760225646,38.24,187.28,187.22,0.03]
[1755760225647,3.7608057,187.25,187.22,0.03]
[1755760226157,4.4408057,187.26,187.22,0.03]
[1755760226453,3.7608057,187.25,187.22,0.7]
[1755760226865,13.59559401,187.31,187.22,0.7]
[1755760226866,0.68,187.29,187.24,3.7608057]
[1755760227041,37.58,187.28,187.25,0.67]
[1755760227244,37.58,187.28,187.24,0.67]
[1755760227245,42.0208057,187.28,187.24,0.67]
[1755760227441,41.3408057,187.28,187.25,0.03]
[1755760227630,42.0208057,187.28,187.25,0.03]
[1755760228364,41.3408057,187.28,187.25,0.03]
[1755760228564,3.7608057,187.26,187.25,0.03]
[1755760229162,4.4408057,187.26,187.25,0.03]
[1755760231059,4.72512884,187.26,187.25,0.03]
[1755760232647,44.32072285,187.26,187.25,0.03]
[1755760233657,81.90072285,187.26,187.25,0.03]
[1755760234837,44.32072285,187.26,187.25,0.03]
[1755760235038,81.90072285,187.26,187.25,0.03]
[1755760236460,84.68836155,187.26,187.25,0.03]
[1755760239993,94.68836155,187.26,187.25,0.03]
[1755760240493,98.27425407,187.26,187.25,0.03]
[1755760241289,88.27425407,187.26,187.25,0.03]
[1755760241496,98.27425407,187.26,187.25,0.03]
[1755760241986,88.27425407,187.26,187.25,0.03]
[1755760242164,98.27425407,187.26,187.25,0.03]
[1755760242591,88.27425407,187.26,187.25,0.03]
[1755760243089,98.27425407,187.26,187.25,0.03]
[1755760243664,88.27425407,187.26,187.25,0.03]
[1755760245476,61.59425407,187.26,187.25,0.03]
[1755760245801,88.27425407,187.26,187.25,0.03]
[1755760249978,72.27425407,187.26,187.25,0.03]
[1755760250294,17.64072285,187.24,187.23,0.03]
[1755760250598,17.64072285,187.24,187.22,0.03]
[1755760250599,23.87991715,187.23,187.22,0.03]
[1755760250777,31.40152855,187.22,187.21,0.03]
[1755760250976,31.40152855,187.21,187.2,0.03]
[1755760251180,35.66742107,187.21,187.2,0.03]
[1755760251678,41.00901607,187.21,187.2,0.03]
[1755760252294,35.66742107,187.21,187.2,0.03]
[1755760252708,17.64072285,187.19,187.14,0.03]
[1755760252877,84.82661537,187.19,187.14,0.03]
[1755760253071,85.49661537,187.19,187.14,0.03]
[1755760253268,59.49661537,187.19,187.14,0.03]
[1755760253474,69.49661537,187.19,187.14,0.03]
[1755760254204,68.82661537,187.19,187.15,0.7]
[1755760254377,69.49661537,187.19,187.15,0.7]
[1755760254574,69.49661537,187.19,187.14,0.03]
[1755760254575,20.94229223,187.19,187.14,0.03]
[1755760254779,77.21559401,187.19,187.18,0.73]
[1755760255079,81.26072285,187.19,187.18,0.73]
[1755760255272,81.26072285,187.19,187.18,0.03]
[1755760255513,81.11856128,187.19,187.18,0.03]
[1755760255691,81.26072285,187.19,187.18,0.03]
[1755760255877,30.04512884,187.19,187.18,0.73]
[1755760256078,67.66512884,187.19,187.18,0.73]
[1755760256276,67.52296727,187.19,187.18,0.73]
[1755760256697,70.45368102,187.19,187.18,0.73]
[1755760257811,84.71927503,187.19,187.18,0.03]
[1755760260500,84.04927503,187.19,187.18,0.03]
[1755760261811,84.71927503,187.19,187.18,0.03]
[1755760262214,84.04927503,187.19,187.18,0.03]
[1755760264021,84.71927503,187.19,187.18,0.03]
[1755760264400,46.42927503,187.19,187.18,0.03]
[1755760264609,84.04927503,187.19,187.18,0.73]
[1755760264809,84.04927503,187.19,187.18,0.03]
[1755760266023,84.04927503,187.19,187.18,0.73]
[1755760266719,84.04927503,187.19,187.18,0.03]
[1755760267020,84.04927503,187.19,187.18,0.73]
[1755760269033,84.04927503,187.19,187.18,0.03]
[1755760271134,70.16935788,187.19,187.18,0.73]
[1755760271633,39.73775558,187.22,187.18,0.73]
[1755760271824,37.6,187.21,187.18,0.73]
[1755760272024,3.7608057,187.19,187.18,0.73]
[1755760272194,41.3608057,187.19,187.18,0.73]
[1755760272636,2.78812566,187.21,187.18,0.73]
[1755760272800,37.6,187.2,187.18,4.4908057]
[1755760273001,37.6,187.21,187.18,3.7908057]
[1755760273320,37.6,187.21,187.19,0.7]
[1755760275719,3.7608057,187.2,187.18,0.03]
[1755760275928,3.7608057,187.2,187.19,0.7]
[1755760276223,41.3608057,187.21,187.19,0.7]
[1755760277120,41.3608057,187.21,187.2,0.7]
[1755760277525,37.6,187.21,187.2,0.7]
[1755760278322,136.2608057,187.25,187.2,4.4608057]
[1755760278526,3.7608057,187.25,187.2,4.4608057]
[1755760278717,37.6,187.24,187.21,0.7]
[1755760278920,41.4208057,187.25,187.21,0.7]
[1755760279313,3.7608057,187.24,187.22,0.7]
[1755760280331,37.66,187.25,187.18,0.03]
[1755760280332,41.4208057,187.25,187.2,3.7608057]
[1755760280732,3.7608057,187.24,187.21,0.7]
[1755760281112,3.7608057,187.24,187.22,0.7]
[1755760284325,3.7608057,187.24,187.2,4.4508057]
[1755760284536,3.7608057,187.24,187.21,0.69]
[1755760284847,3.7608057,187.22,187.19,26.0]
[1755760285037,3.7608057,187.2,187.18,26.03]
[1755760285427,3.7608057,187.2,187.18,26.72]
[1755760285639,3.7608057,187.2,187.18,0.72]
[1755760285946,0.06,187.25,187.19,4.4508057]
[1755760286152,37.6,187.24,187.2,0.69]
[1755760286353,37.6,187.24,187.21,0.69]
[1755760286562,37.6,187.24,187.22,0.69]
[1755760290023,37.6,187.24,187.21,3.7608057]
[1755760290229,37.6,187.24,187.23,0.69]
[1755760290848,37.6,187.24,187.21,0.69]
[1755760291144,37.6,187.24,187.21,4.4508057]
[1755760291721,37.6,187.24,187.21,0.69]
[1755760292224,37.6,187.24,187.21,4.4508057]
[1755760292543,37.6,187.24,187.21,0.69]
[1755760292751,37.6,187.24,187.22,0.69]
[1755760295655,37.66,187.24,187.22,0.69]
[1755760296152,37.66,187.24,187.2,4.4808057]
[1755760296455,41.4208057,187.24,187.2,4.4808057]
[1755760296655,41.4208057,187.24,187.2,3.7908057]
[1755760296952,0.72,187.23,187.2,3.7908057]
[1755760297125,0.72,187.23,187.2,0.03]
[1755760298352,41.4208057,187.24,187.21,4.4508057]
[1755760298353,37.66,187.24,187.21,4.4508057]
[1755760298559,37.66,187.24,187.2,3.7908057]
[1755760298743,38.38,187.24,187.2,3.7908057]
[1755760299050,0.72,187.23,187.2,3.7908057]
[1755760300050,0.72,187.23,187.2,0.03]
[1755760300555,0.72,187.23,187.2,0.72]
[1755760300759,41.4208057,187.24,187.2,0.72]
[1755760301137,42.1408057,187.24,187.2,0.72]
[1755760303359,38.38,187.24,187.2,4.4808057]
[1755760304030,0.72,187.23,187.2,0.72]
[1755760304259,0.72,187.23,187.2,3.7908057]
[1755760304944,4.4808057,187.22,187.2,0.03]
[1755760305346,0.72,187.21,187.2,0.03]
[1755760307654,42.0008057,187.21,187.2,0.03]
[1755760307865,59.64152855,187.21,187.2,0.03]
[1755760308069,13.87991715,187.2,187.18,0.03]
[1755760308268,17.64072285,187.19,187.18,0.03]
[1755760308447,18.36072285,187.19,187.18,0.03]
[1755760309769,4.4808057,187.19,187.18,0.03]
[1755760310072,3.7608057,187.19,187.18,0.03]
[1755760310546,4.4808057,187.19,187.18,0.03]
[1755760311244,18.36072285,187.19,187.18,0.03]
[1755760311577,21.95767683,187.19,187.18,0.03]
[1755760315264,8.07775968,187.19,187.18,0.03]
[1755760315460,42.0408057,187.19,187.18,0.03]
[1755760315772,45.63775968,187.19,187.18,0.03]
[1755760319264,42.0408057,187.19,187.18,0.03]
[1755760321253,41.3208057,187.19,187.18,0.03]
[1755760321852,42.0408057,187.19,187.18,0.03]
[1755760322088,59.51462201,187.19,187.18,0.03]
[1755760322272,17.64072285,187.17,187.16,0.03]
[1755760322479,58.79462201,187.17,187.14,0.03]
[1755760322656,17.64072285,187.15,187.14,0.03]
[1755760322854,55.22072285,187.15,187.14,0.03]
[1755760323080,55.94072285,187.15,187.14,0.03]
[1755760324649,26.72,187.17,187.14,0.03]
[1755760324899,3.7608057,187.15,187.14,0.03]
[1755760325456,37.58,187.16,187.14,0.03]
[1755760325687,3.7608057,187.15,187.14,0.03]
[1755760327786,41.3408057,187.15,187.14,0.03]
[1755760327979,42.0608057,187.15,187.14,0.03]
[1755760328573,41.3408057,187.15,187.14,0.03]
[1755760329288,37.58,187.15,187.14,0.03]
[1755760329493,41.3408057,187.15,187.14,0.03]
[1755760329666,41.3208057,187.15,187.14,0.03]
[1755760330559,55.92072285,187.15,187.14,0.03]
[1755760331072,55.20072285,187.15,187.14,0.03]
[1755760331266,41.3208057,187.15,187.14,0.03]
[1755760333002,28.78885592,187.18,187.14,0.74]
[1755760333169,3.8208057,187.19,187.14,0.74]
[1755760333372,37.56,187.18,187.14,0.74]
[1755760333685,37.56,187.18,187.14,4.5008057]
[1755760333868,37.56,187.18,187.15,0.71]
[1755760334064,3.7608057,187.16,187.14,0.03]
[1755760334288,3.7608057,187.15,187.14,0.03]
[1755760334466,41.3408057,187.16,187.14,0.03]
[1755760335866,37.58,187.16,187.14,0.74]
[1755760342490,37.58,187.16,187.14,0.03]
[1755760342795,37.56,187.17,187.14,0.74]
[1755760343177,3.7608057,187.18,187.14,0.74]
[1755760343395,37.54,187.17,187.14,0.74]
[1755760343767,4.4308057,187.18,187.14,0.74]
[1755760344006,37.54,187.17,187.14,0.74]
[1755760344673,37.54,187.17,187.15,0.7]
[1755760346067,0.06,187.16,187.15,0.7]
[1755760348089,0.06,187.16,187.15,4.4608057]
[1755760349470,0.06,187.16,187.15,0.7]
[1755760349671,0.06,187.16,187.14,4.4908057]
[1755760349973,0.06,187.16,187.15,0.7]
[1755760350582,0.06,187.16,187.14,0.03]
[1755760350779,0.06,187.16,187.15,0.7]
[1755760351395,0.06,187.16,187.14,0.03]
[1755760351707,0.06,187.16,187.14,0.73]
[1755760352585,0.06,187.16,187.15,0.7]
[1755760355490,0.73,187.16,187.14,0.03]
[1755760356497,0.06,187.16,187.14,0.03]
[1755760356691,0.73,187.16,187.14,0.03]
[1755760358419,0.06,187.16,187.14,0.03]
[1755760358601,0.67,187.15,187.14,0.03]
[1755760358992,4.4308057,187.15,187.14,0.03]
[1755760361016,0.67,187.15,187.14,0.03]
[1755760361193,4.4308057,187.15,187.14,0.03]
[1755760362214,37.58,187.16,187.14,0.03]